bitfinex/quotes_SOLUSD_20250425
["timestamp","ask_amount","ask_price","bid_price","bid_amount"]
[1745593503548,32.17917672,154.36,154.28,3.33562609]
[1745593503861,32.17917672,154.38,154.33,32.17917672]
[1745593504065,82.8,154.39,154.37,32.17917672]
[1745593504271,29.27643766,154.44,154.37,32.17917672]
[1745593504476,61.45561438,154.44,154.39,32.17917672]
[1745593504780,42.55561438,154.44,154.39,32.17917672]
[1745593504965,10.37643766,154.44,154.4,32.17917672]
[1745593505348,32.17917672,154.42,154.33,18.9]
[1745593505548,10.37643766,154.44,154.39,32.17917672]
[1745593505768,10.37643766,154.44,154.33,18.9]
[1745593505769,32.17917672,154.43,154.33,18.9]
[1745593506051,32.17917672,154.36,154.31,32.17917672]
[1745593506468,0.14216157,154.4,154.34,32.17917672]
[1745593506669,32.17917672,154.38,154.33,32.17917672]
[1745593506974,32.17917672,154.35,154.3,32.17917672]
[1745593507165,26.0,154.38,154.29,32.17917672]
[1745593507166,32.17917672,154.34,154.29,32.17917672]
[1745593507492,32.17917672,154.34,154.28,0.03]
[1745593507658,82.94216157,154.37,154.3,32.17917672]
[1745593507985,32.17917672,154.35,154.3,32.17917672]
[1745593508286,82.8,154.37,154.32,32.17917672]
[1745593508489,82.8,154.37,154.28,0.03]
[1745593508655,82.8,154.37,154.33,32.17917672]
[1745593508851,32.17917672,154.34,154.29,32.17917672]
[1745593509080,82.8,154.37,154.28,32.20917672]
[1745593509081,32.17917672,154.33,154.28,32.20917672]
[1745593509578,32.17917672,154.35,154.3,32.17917672]
[1745593509803,32.17917672,154.34,154.28,0.03]
[1745593509993,82.94216157,154.37,154.31,32.17917672]
[1745593509994,32.17917672,154.36,154.31,32.17917672]
[1745593510180,82.8,154.37,154.34,32.17917672]
[1745593510980,82.8,154.37,154.28,0.03]
[1745593511359,114.97917672,154.37,154.32,32.17917672]
[1745593511550,32.17917672,154.35,154.31,32.17917672]
[1745593511756,32.17917672,154.35,154.28,0.03]
[1745593511757,32.17917672,154.34,154.29,32.17917672]
[1745593511979,32.17917672,154.33,154.28,0.03]
[1745593512173,32.17917672,154.33,154.28,32.20917672]
[1745593512487,32.17917672,154.3,154.28,0.03]
[1745593512668,0.14216157,154.32,154.28,0.03]
[1745593512880,32.17917672,154.3,154.28,0.03]
[1745593513183,32.17917672,154.29,154.28,0.03]
[1745593514158,32.32133829,154.29,154.28,0.03]
[1745593514361,32.17917672,154.29,154.28,0.03]
[1745593515185,82.8,154.33,154.28,32.20917672]
[1745593515480,32.17917672,154.32,154.28,0.03]
[1745593515662,108.8,154.33,154.28,0.03]
[1745593515872,140.97917672,154.33,154.28,32.20917672]
[1745593516070,82.8,154.33,154.3,32.17917672]
[1745593516472,114.97917672,154.33,154.29,32.17917672]
[1745593516788,32.17917672,154.32,154.28,0.03]
[1745593516982,32.17917672,154.3,154.28,0.03]
[1745593517183,32.17917672,154.31,154.28,0.03]
[1745593517491,26.0,154.32,154.28,32.20917672]
[1745593517671,26.0,154.32,154.29,32.17917672]
[1745593518174,58.17917672,154.32,154.28,32.20917672]
[1745593518679,26.0,154.32,154.28,32.20917672]
[1745593518892,58.17917672,154.32,154.28,0.03]
[1745593519097,58.17917672,154.32,154.28,32.20917672]
[1745593519264,115.12133829,154.33,154.28,32.20917672]
[1745593519767,115.12133829,154.33,154.28,0.03]
[1745593520011,115.12133829,154.33,154.28,32.20917672]
[1745593520469,82.8,154.33,154.29,32.17917672]
[1745593520802,82.8,154.33,154.3,32.17917672]
[1745593521172,82.8,154.33,154.29,32.17917672]
[1745593521374,82.8,154.33,154.3,32.17917672]
[1745593521676,82.8,154.33,154.31,32.17917672]
[1745593522195,114.97917672,154.33,154.28,0.03]
[1745593522525,82.8,154.33,154.31,32.17917672]
[1745593522671,26.0,154.36,154.32,32.17917672]
[1745593522868,32.17917672,154.36,154.32,32.17917672]
[1745593523100,82.8,154.39,154.32,32.17917672]
[1745593523101,0.14216157,154.38,154.32,32.17917672]
[1745593523271,32.17917672,154.36,154.32,32.17917672]
[1745593523469,32.17917672,154.37,154.32,32.17917672]
[1745593523774,82.8,154.39,154.35,32.17917672]
[1745593523969,2.37468443,154.38,154.37,32.17917672]
[1745593524897,82.8,154.39,154.37,32.17917672]
[1745593525100,82.8,154.39,154.38,32.17917672]
[1745593525592,82.8,154.39,154.32,32.17917672]
[1745593525794,32.17917672,154.38,154.29,6.3912]
[1745593525982,32.17917672,154.38,154.33,32.17917672]
[1745593526380,114.97917672,154.39,154.34,32.17917672]
[1745593526589,32.17917672,154.38,154.33,32.17917672]
[1745593526890,82.8,154.39,154.36,32.17917672]
[1745593527202,82.8,154.39,154.37,32.17917672]
[1745593527373,82.8,154.39,154.32,32.17917672]
[1745593527576,82.8,154.39,154.36,32.17917672]
[1745593528293,82.8,154.39,154.37,32.17917672]
[1745593528604,82.8,154.39,154.32,32.17917672]
[1745593528605,58.24217672,154.44,154.38,32.17917672]
[1745593529112,2.38211753,154.43,154.38,32.17917672]
[1745593529494,2.38211753,154.43,154.4,32.17917672]
[1745593529805,2.38211753,154.43,154.41,32.17917672]
[1745593529979,2.44511753,154.44,154.41,32.17917672]
[1745593530774,2.44511753,154.44,154.4,32.17917672]
[1745593532006,32.17917672,154.41,154.35,18.58]
[1745593532178,32.17917672,154.4,154.35,50.75917672]
[1745593532516,32.17917672,154.41,154.36,32.17917672]
[1745593532882,32.17917672,154.41,154.35,18.58]
[1745593532883,32.17917672,154.42,154.37,32.17917672]
[1745593533810,2.38264533,154.41,154.38,32.17917672]
[1745593534526,58.17917672,154.43,154.38,32.17917672]
[1745593534686,58.17917672,154.43,154.39,32.17917672]
[1745593534919,32.17917672,154.41,154.36,32.17917672]
[1745593535129,0.14216157,154.42,154.37,32.17917672]
[1745593535297,0.063,154.44,154.39,32.17917672]
[1745593535687,32.17917672,154.43,154.39,32.17917672]
[1745593535805,32.17917672,154.43,154.32,32.17917672]
[1745593535806,32.17917672,154.41,154.36,32.17917672]
[1745593535991,32.17917672,154.41,154.37,32.17917672]
[1745593536189,0.14216157,154.43,154.38,32.17917672]
[1745593536423,32.38433829,154.44,154.39,32.17917672]
[1745593536597,0.20516157,154.44,154.39,32.17917672]
[1745593536805,32.38433829,154.44,154.39,32.17917672]
[1745593536990,2.38261306,154.43,154.39,32.17917672]
[1745593537692,2.38261306,154.43,154.4,32.17917672]
[1745593537909,2.38261306,154.43,154.32,32.17917672]
[1745593538116,32.38433829,154.44,154.39,32.17917672]
[1745593539817,0.20516157,154.44,154.39,32.17917672]
[1745593540119,32.38433829,154.44,154.39,32.17917672]
[1745593540320,0.20516157,154.44,154.39,32.17917672]
[1745593540498,32.38433829,154.44,154.39,32.17917672]
[1745593541008,18.85481043,154.44,154.3,44.56]
[1745593541189,32.17917672,154.38,154.34,32.17917672]
[1745593541535,32.17917672,154.4,154.35,32.17917672]
[1745593541893,32.17917672,154.39,154.3,18.56]
[1745593542197,18.79181043,154.41,154.29,32.3912]
[1745593542198,34.56051063,154.38,154.33,32.17917672]
[1745593542412,32.17917672,154.37,154.29,6.3912]
[1745593542594,32.17917672,154.34,154.28,18.59]
[1745593542792,32.17917672,154.34,154.29,32.17917672]
[1745593543096,26.14216157,154.35,154.3,32.17917672]
[1745593543297,32.17917672,154.34,154.3,32.17917672]
[1745593543508,32.17917672,154.34,154.28,18.59]
[1745593543717,32.17917672,154.34,154.29,32.17917672]
[1745593543893,32.17917672,154.34,154.3,32.17917672]
[1745593544216,32.17917672,154.34,154.29,32.17917672]
[1745593544792,32.17917672,154.32,154.28,0.03]
[1745593545100,32.17917672,154.33,154.29,32.17917672]
[1745593546894,26.0,154.35,154.31,32.17917672]
[1745593547103,58.17917672,154.35,154.28,0.03]
[1745593547303,58.17917672,154.35,154.3,32.17917672]
[1745593547517,26.0,154.35,154.3,32.17917672]
[1745593547715,26.0,154.35,154.31,32.17917672]
[1745593547907,58.17917672,154.35,154.31,32.17917672]
[1745593548111,82.8,154.39,154.34,32.17917672]
[1745593548303,82.8,154.39,154.38,32.17917672]
[1745593549016,82.8,154.39,154.32,32.17917672]
[1745593549215,82.8,154.39,154.37,32.17917672]
[1745593549414,82.8,154.39,154.38,32.17917672]
[1745593550214,32.24217672,154.44,154.38,32.17917672]
[1745593550414,32.24217672,154.44,154.33,1.551]
[1745593550415,0.063,154.44,154.4,32.17917672]
[1745593550914,0.063,154.44,154.41,32.17917672]
[1745593551313,0.063,154.44,154.42,32.17917672]
[1745593552429,32.17917672,154.43,154.37,32.17917672]
[1745593552605,0.20516157,154.44,154.38,32.17917672]
[1745593552810,32.17917672,154.43,154.38,32.17917672]
[1745593554033,32.17917672,154.39,154.31,6.5214]
[1745593554207,26.0,154.41,154.34,32.17917672]
[1745593554409,2.38248666,154.42,154.37,32.17917672]
[1745593554410,34.56166338,154.42,154.37,32.17917672]
[1745593554717,2.38248666,154.42,154.37,32.17917672]
[1745593554912,2.38248666,154.42,154.38,32.17917672]
[1745593555110,34.56166338,154.42,154.37,32.17917672]
[1745593555326,32.17917672,154.4,154.36,32.17917672]
[1745593555728,32.17917672,154.4,154.35,32.17917672]
[1745593556027,0.14216157,154.4,154.35,32.17917672]
[1745593556203,32.32133829,154.4,154.35,32.17917672]
[1745593556414,32.17917672,154.39,154.31,6.5214]
[1745593556613,32.17917672,154.39,154.34,32.17917672]
[1745593557635,32.17917672,154.4,154.31,6.5214]
[1745593557818,32.17917672,154.4,154.35,32.17917672]
[1745593558017,58.32133829,154.42,154.37,32.17917672]
[1745593558233,58.17917672,154.42,154.37,32.17917672]
[1745593558834,26.0,154.42,154.38,32.17917672]
[1745593559205,58.17917672,154.42,154.37,32.17917672]
[1745593559446,82.8,154.43,154.38,32.17917672]
[1745593559648,114.97917672,154.43,154.38,32.17917672]
[1745593559824,2.38498206,154.42,154.38,32.17917672]
[1745593560435,34.56415878,154.42,154.37,32.17917672]
[1745593560627,32.17917672,154.41,154.37,32.17917672]
[1745593560833,32.17917672,154.41,154.32,32.17917672]
[1745593561033,32.17917672,154.41,154.37,32.17917672]
[1745593561447,82.8,154.43,154.37,32.17917672]
[1745593561448,32.17917672,154.42,154.37,32.17917672]
[1745593561621,2.38609739,154.41,154.37,32.17917672]
[1745593561821,2.38609739,154.41,154.38,32.17917672]
[1745593562217,2.38609739,154.41,154.39,32.17917672]
[1745593562577,2.38609739,154.41,154.4,32.17917672]
[1745593562756,114.97917672,154.43,154.32,32.17917672]
[1745593563048,82.8,154.43,154.37,32.17917672]
[1745593563259,82.8,154.43,154.41,32.17917672]
[1745593563434,82.8,154.43,154.33,18.64964886]
[1745593563622,82.8,154.43,154.41,32.17917672]
[1745593563829,32.17917672,154.42,154.32,32.17917672]
[1745593564232,82.8,154.43,154.4,32.17917672]
[1745593564645,82.8,154.43,154.41,32.17917672]
[1745593565260,82.8,154.43,154.42,32.17917672]
[1745593565552,82.8,154.43,154.33,26.0]
[1745593565755,82.8,154.43,154.39,32.17917672]
[1745593566257,114.97917672,154.43,154.33,26.0]
[1745593566579,82.8,154.43,154.4,32.17917672]
[1745593567231,82.8,154.43,154.36,18.76]
[1745593567438,82.8,154.43,154.4,20.12608751]
[1745593567665,0.063,154.44,154.42,20.12608751]
[1745593567842,0.063,154.44,154.4,20.12608751]
[1745593568681,2.39088366,154.43,154.41,20.12608751]
[1745593569460,2.39088366,154.43,154.41,32.20036165]
[1745593569665,34.59124531,154.42,154.36,18.76]
[1745593569837,2.39088366,154.42,154.41,32.20036165]
[1745593570242,2.39088366,154.43,154.41,32.20036165]
[1745593570439,2.39088366,154.43,154.4,32.20036165]
[1745593570640,2.39088366,154.43,154.41,32.20036165]
[1745593570854,2.39088366,154.43,154.38,1.5096]
[1745593571066,2.39088366,154.43,154.42,32.20036165]
[1745593571658,0.063,154.44,154.42,32.20036165]
[1745593572361,0.063,154.44,154.43,32.20036165]
[1745593572542,0.063,154.44,154.42,32.20036165]
[1745593572865,32.26336165,154.44,154.39,32.20036165]
[1745593573462,32.26336165,154.44,154.36,18.76]
[1745593573763,2.39153064,154.43,154.39,32.20036165]
[1745593573945,2.39153064,154.43,154.36,18.76]
[1745593574147,2.39153064,154.43,154.39,32.20036165]
[1745593575089,34.59189229,154.43,154.38,32.20036165]
[1745593575369,32.20036165,154.43,154.38,32.20036165]
[1745593575771,32.20036165,154.41,154.36,18.76]
[1745593575943,32.20036165,154.39,154.36,18.76]
[1745593576138,32.20036165,154.38,154.34,32.20036165]
[1745593576338,2.39071704,154.4,154.34,32.20036165]
[1745593576664,2.39071704,154.4,154.38,32.20036165]
[1745593576871,2.39071704,154.4,154.37,32.20036165]
[1745593577170,2.39071704,154.41,154.37,32.20036165]
[1745593577345,2.39071704,154.41,154.39,32.20036165]
[1745593577552,2.39071704,154.41,154.4,32.20036165]
[1745593578069,0.063,154.44,154.4,32.20036165]
[1745593578252,0.063,154.44,154.43,32.20036165]
[1745593579871,0.063,154.44,154.41,6.1073]
[1745593580085,0.063,154.44,154.42,32.20036165]
[1745593580745,0.063,154.44,154.38,18.12]
[1745593580955,0.063,154.44,154.42,32.20036165]
[1745593581869,0.063,154.44,154.43,32.20036165]
[1745593587568,0.063,154.44,154.41,26.0]
[1745593587767,0.063,154.44,154.43,32.20036165]
[1745593589368,0.063,154.44,154.43,76.85001051]
[1745593590105,0.063,154.44,154.43,58.20036165]
[1745593590783,0.063,154.49,154.43,76.85001051]
[1745593590982,0.063,154.49,154.48,32.20036165]
[1745593591676,0.063,154.49,154.48,64.4007233]
[1745593592459,0.063,154.49,154.48,83.05037216]
[1745593592681,0.063,154.49,154.47,18.12]
[1745593593561,24.64232481,154.5,154.47,18.12]
[1745593593896,32.26336165,154.51,154.47,18.12]
[1745593594794,32.26336165,154.51,154.47,50.32036165]
[1745593595291,0.063,154.51,154.47,50.32036165]
[1745593595591,0.063,154.51,154.5,32.20036165]
[1745593600268,0.063,154.51,154.49,32.20036165]
[1745593600599,32.26336165,154.51,154.47,50.32036165]
[1745593600893,0.063,154.51,154.48,32.20036165]
[1745593601504,0.063,154.51,154.47,18.12]
[1745593601796,0.14216157,154.47,154.4,18.12]
[1745593601997,32.20036165,154.45,154.41,32.20036165]
[1745593602376,32.20036165,154.45,154.4,18.12]
[1745593602693,32.20036165,154.45,154.4,50.32036165]
[1745593603073,32.20036165,154.44,154.4,50.32036165]
[1745593603267,32.20036165,154.45,154.4,18.12]
[1745593603472,32.20036165,154.45,154.4,50.32036165]
[1745593603669,32.20036165,154.42,154.36,0.03]
[1745593603884,32.20036165,154.42,154.37,32.20036165]
[1745593604091,32.20036165,154.42,154.36,0.03]
[1745593604291,32.20036165,154.42,154.38,32.20036165]
[1745593604482,32.20036165,154.43,154.38,32.20036165]
[1745593604676,26.0,154.44,154.39,32.20036165]
[1745593604976,18.64964886,154.47,154.36,0.03]
[1745593604977,32.20036165,154.46,154.41,32.20036165]
[1745593605175,32.20036165,154.46,154.42,32.20036165]
[1745593605700,58.34252322,154.47,154.42,32.20036165]
[1745593606002,34.59756104,154.46,154.42,32.20036165]
[1745593606214,2.39719939,154.46,154.43,32.20036165]
[1745593606383,2.39719939,154.46,154.45,32.20036165]
[1745593606588,2.39719939,154.48,154.44,32.20036165]
[1745593607197,2.39719939,154.48,154.46,32.20036165]
[1745593607693,2.39719939,154.49,154.46,32.20036165]
[1745593607884,2.39719939,154.49,154.41,17.88]
[1745593608090,108.8,154.5,154.46,32.20036165]
[1745593608386,82.8,154.5,154.46,32.20036165]
[1745593608582,82.8,154.5,154.41,43.88]
[1745593608583,0.063,154.51,154.49,32.20036165]
[1745593608896,0.063,154.51,154.5,32.20036165]
[1745593609137,0.063,154.51,154.45,6.3497]
[1745593609290,0.063,154.51,154.5,32.20036165]
[1745593609795,0.063,154.51,154.45,6.3497]
[1745593610007,0.063,154.51,154.5,32.20036165]
[1745593610301,0.063,154.51,154.48,32.20036165]
[1745593610505,0.063,154.51,154.45,6.3497]
[1745593610682,0.063,154.51,154.48,32.20036165]
[1745593612201,0.063,154.51,154.49,32.20036165]
[1745593613321,0.063,154.51,154.5,32.20036165]
[1745593614188,0.063,154.51,154.45,6.3497]
[1745593614392,0.063,154.51,154.5,32.20036165]
[1745593615440,0.063,154.51,154.49,32.20036165]
[1745593615705,0.063,154.51,154.48,32.20036165]
[1745593616083,32.26336165,154.51,154.45,17.86]
[1745593616402,32.26336165,154.51,154.46,32.20036165]
[1745593616611,32.26336165,154.51,154.47,32.20036165]
[1745593616791,0.063,154.51,154.47,32.20036165]
[1745593617106,0.063,154.51,154.48,32.20036165]
[1745593617555,2.46128314,154.51,154.5,32.20036165]
[1745593617690,2.46128314,154.51,154.49,32.20036165]
[1745593618298,0.063,154.51,154.49,32.20036165]
[1745593618795,0.063,154.51,154.45,17.86]
[1745593619001,0.063,154.51,154.49,32.20036165]
[1745593619910,0.063,154.51,154.5,32.20036165]
[1745593620681,0.063,154.51,154.5,40.00236165]
[1745593621299,0.063,154.51,154.5,32.20036165]
[1745593621495,0.063,154.51,154.48,26.0]
[1745593621987,0.063,154.51,154.5,32.20036165]
[1745593622404,0.063,154.51,154.46,32.3604]
[1745593622584,32.26336165,154.51,154.47,32.20036165]
[1745593622784,0.063,154.51,154.47,32.20036165]
[1745593623003,0.063,154.51,154.5,32.20036165]
[1745593625607,0.063,154.51,154.46,26.0]
[1745593625786,0.063,154.51,154.45,17.86]
[1745593626121,32.20036165,154.48,154.41,6.0489]
[1745593626423,32.20036165,154.47,154.43,32.20036165]
[1745593626630,32.20036165,154.47,154.41,6.0489]
[1745593626785,32.20036165,154.47,154.43,32.20036165]
[1745593627164,0.063,154.51,154.46,32.20036165]
[1745593627292,32.40552322,154.51,154.47,32.20036165]
[1745593627492,32.20036165,154.5,154.46,32.20036165]
[1745593627688,32.20036165,154.5,154.44,32.20036165]
[1745593627689,32.20036165,154.48,154.44,32.20036165]
[1745593627903,32.20036165,154.48,154.43,32.20036165]
[1745593628225,32.20036165,154.48,154.44,32.20036165]
[1745593628510,34.75180531,154.49,154.44,32.20036165]
[1745593628713,2.40928209,154.47,154.44,32.20036165]
[1745593629104,2.40928209,154.47,154.4,17.86]
[1745593629306,34.60964374,154.47,154.43,32.20036165]
[1745593629725,32.20036165,154.44,154.36,0.03]
[1745593629922,0.14216157,154.43,154.38,32.20036165]
[1745593630144,58.20036165,154.45,154.41,32.20036165]
[1745593630583,0.14216157,154.45,154.41,32.20036165]
[1745593630782,2.40928209,154.44,154.43,32.20036165]
[1745593631432,2.40928209,154.44,154.4,50.06036165]
[1745593631839,2.40928209,154.44,154.43,32.20036165]
[1745593632022,2.40928209,154.48,154.43,32.20036165]
[1745593632211,2.40928209,154.48,154.45,32.20036165]
[1745593632932,34.60964374,154.49,154.4,50.06036165]
[1745593633244,2.40928209,154.49,154.47,32.20036165]
[1745593633822,2.40928209,154.48,154.47,32.20036165]
[1745593634030,2.40928209,154.48,154.4,50.06036165]
[1745593634339,32.20036165,154.46,154.4,17.86]
[1745593634842,32.20036165,154.46,154.42,32.20036165]
[1745593635028,26.0,154.49,154.44,32.20036165]
[1745593635238,26.0,154.49,154.45,32.20036165]
[1745593635534,32.34252322,154.5,154.46,32.20036165]
[1745593635745,0.063,154.51,154.49,32.20036165]
[1745593636037,0.063,154.51,154.5,32.20036165]
[1745593637459,0.063,154.51,154.47,17.86]
[1745593637621,0.063,154.51,154.49,32.20036165]
[1745593638154,0.063,154.51,154.47,17.86]
[1745593638447,0.063,154.51,154.47,50.06036165]
[1745593638653,0.063,154.51,154.48,32.20036165]
[1745593638942,0.063,154.51,154.47,17.86]
[1745593639140,0.063,154.51,154.48,32.20036165]
[1745593639341,0.14216157,154.5,154.46,32.20036165]
[1745593639546,32.20036165,154.48,154.43,32.20036165]
[1745593639749,32.20036165,154.47,154.42,17.86]
[1745593639910,26.14216157,154.5,154.44,32.20036165]
[1745593639911,32.20036165,154.48,154.44,32.20036165]
[1745593640118,32.20036165,154.48,154.43,32.20036165]
[1745593640419,32.20036165,154.47,154.42,50.06036165]
[1745593640747,0.14216157,154.47,154.43,32.20036165]
[1745593641039,32.20036165,154.45,154.39,6.2905]
[1745593641338,32.20036165,154.43,154.39,32.20036165]
[1745593641552,32.34252322,154.44,154.37,17.86]
[1745593641716,32.20036165,154.43,154.39,32.20036165]
[1745593642248,32.20036165,154.41,154.37,17.86]
[1745593642553,32.20036165,154.4,154.37,17.86]
[1745593642779,32.20036165,154.4,154.36,0.03]
[1745593643059,32.20036165,154.37,154.36,0.03]
[1745593643263,32.20036165,154.38,154.36,0.03]
[1745593643428,32.20036165,154.37,154.36,0.03]
[1745593644421,32.34252322,154.37,154.36,0.03]
[1745593644733,32.20036165,154.38,154.36,0.03]
[1745593645123,0.14216157,154.39,154.36,0.03]
[1745593645320,32.34252322,154.37,154.36,0.03]
[1745593645749,53.40066325,154.37,154.36,0.03]
[1745593646535,50.99217208,154.37,154.36,0.03]
[1745593647136,58.20036165,154.38,154.36,0.03]
[1745593647336,82.8,154.41,154.36,32.23036165]
[1745593647526,82.8,154.41,154.4,32.20036165]
[1745593648261,82.8,154.41,154.36,0.03]
[1745593648430,58.20036165,154.45,154.4,32.20036165]
[1745593648627,26.0,154.45,154.36,6.5208]
[1745593649025,32.20036165,154.44,154.4,32.20036165]
[1745593649336,0.14216157,154.44,154.4,32.20036165]
[1745593649546,32.20036165,154.47,154.43,32.20036165]
[1745593649757,0.14216157,154.46,154.36,6.5208]
[1745593649953,32.20036165,154.44,154.39,32.20036165]
[1745593650352,0.14216157,154.44,154.4,32.20036165]
[1745593650959,32.20036165,154.45,154.41,32.20036165]
[1745593651265,82.8,154.48,154.44,32.20036165]
[1745593651559,82.8,154.48,154.45,32.20036165]
[1745593651560,2.40498848,154.47,154.45,32.20036165]
[1745593651851,2.40498848,154.47,154.44,32.20036165]
[1745593652054,115.00036165,154.48,154.44,32.20036165]
[1745593652228,82.8,154.48,154.44,32.20036165]
[1745593652428,82.8,154.48,154.45,32.20036165]
[1745593652870,32.20036165,154.46,154.42,32.20036165]
[1745593653029,32.20036165,154.45,154.41,50.06036165]
[1745593653358,32.20036165,154.46,154.41,50.06036165]
[1745593653550,18.64964886,154.46,154.36,24.3808]
[1745593653732,0.14216157,154.43,154.4,32.20036165]
[1745593654760,32.20036165,154.45,154.4,32.20036165]
[1745593655037,32.34252322,154.44,154.36,24.3808]
[1745593655232,32.20036165,154.43,154.39,32.20036165]
[1745593655430,32.20036165,154.42,154.38,32.20036165]
[1745593655649,58.20036165,154.43,154.38,32.20036165]
[1745593655848,58.20036165,154.43,154.39,32.20036165]
[1745593656052,32.34252322,154.42,154.36,24.3808]
[1745593656371,32.34252322,154.42,154.38,32.20036165]
[1745593656537,32.34252322,154.42,154.37,32.20036165]
[1745593656736,32.34252322,154.42,154.38,32.20036165]
[1745593657060,0.14216157,154.42,154.36,17.89]
[1745593657237,32.34252322,154.42,154.38,32.20036165]
[1745593657960,32.34252322,154.42,154.37,32.20036165]
[1745593658563,0.14216157,154.42,154.37,32.20036165]
[1745593658853,0.14216157,154.42,154.36,17.89]
[1745593658854,32.20036165,154.4,154.36,0.03]
[1745593659061,32.20036165,154.39,154.36,0.03]
[1745593659257,32.20036165,154.38,154.36,0.03]
[1745593659460,32.20036165,154.39,154.36,0.03]
[1745593659637,0.14216157,154.4,154.36,0.03]
[1745593659836,32.34252322,154.4,154.36,0.03]
[1745593660428,0.14216157,154.4,154.36,32.23036165]
[1745593660632,0.14216157,154.41,154.37,32.20036165]
[1745593662675,32.34252322,154.41,154.37,32.20036165]
[1745593662841,0.14216157,154.41,154.37,32.20036165]
[1745593663042,115.00036165,154.42,154.38,32.20036165]
[1745593663240,82.8,154.42,154.41,32.20036165]
[1745593663540,26.0,154.45,154.41,32.20036165]
[1745593663744,26.0,154.45,154.42,32.20036165]
[1745593664068,26.0,154.45,154.41,32.20036165]
[1745593664282,0.14216157,154.44,154.36,0.03]
[1745593664451,32.20036165,154.43,154.36,0.03]
[1745593664653,32.20036165,154.43,154.38,32.20036165]
[1745593665237,32.20036165,154.42,154.38,32.20036165]
[1745593666557,32.20036165,154.41,154.37,32.20036165]
[1745593666743,32.20036165,154.4,154.36,0.03]
[1745593666954,32.20036165,154.38,154.36,0.03]
[1745593667636,32.20036165,154.37,154.36,0.03]
[1745593667936,32.20036165,154.38,154.36,0.03]
[1745593668967,26.0,154.42,154.37,32.20036165]
[1745593669171,26.0,154.42,154.38,32.20036165]
[1745593669366,32.34252322,154.41,154.36,32.23036165]
[1745593669598,32.20036165,154.39,154.36,0.03]
[1745593670399,32.34252322,154.38,154.36,0.03]
[1745593670705,32.20036165,154.39,154.38,42.71577448]
[1745593670874,58.20036165,154.4,154.38,42.71577448]
[1745593671223,32.20036165,154.39,154.38,42.71577448]
[1745593672390,26.0,154.4,154.38,42.71577448]
[1745593672597,32.20036165,154.39,154.38,42.71577448]
[1745593672775,58.20036165,154.4,154.38,42.71577448]
[1745593672965,26.0,154.4,154.38,42.71577448]
[1745593673170,26.14216157,154.42,154.38,74.91613613]
[1745593673397,115.00036165,154.43,154.38,74.91613613]
[1745593673599,32.20036165,154.42,154.38,74.91613613]
[1745593674407,108.8,154.43,154.38,74.91613613]
[1745593674577,141.00036165,154.43,154.38,74.91613613]
[1745593675309,108.8,154.43,154.39,32.20036165]
[1745593675771,141.00036165,154.43,154.39,32.20036165]
[1745593676907,141.00036165,154.43,154.38,74.91613613]
[1745593677279,141.00036165,154.43,154.39,32.20036165]
[1745593677804,108.8,154.43,154.39,32.20036165]
[1745593677985,141.00036165,154.43,154.39,32.20036165]
[1745593678774,108.8,154.43,154.39,32.20036165]
[1745593679028,141.00036165,154.43,154.39,32.20036165]
[1745593679303,141.00036165,154.43,154.38,74.91613613]
[1745593679602,82.8,154.43,154.4,32.20036165]
[1745593679804,82.8,154.43,154.41,32.20036165]
[1745593680319,89.4479,154.52,154.42,32.20036165]
[1745593680611,89.4479,154.52,154.4,38.58126165]
[1745593680612,29.63586761,154.5,154.47,32.20036165]
[1745593680910,29.63586761,154.5,154.46,32.20036165]
[1745593681087,29.63586761,154.5,154.47,32.20036165]
[1745593681491,29.63586761,154.5,154.48,32.20036165]
[1745593681705,29.63586761,154.5,154.49,32.20036165]
[1745593682789,29.63586761,154.5,154.48,32.20036165]
[1745593683004,29.63586761,154.5,154.45,1.6611]
[1745593683005,29.63586761,154.5,154.47,32.20036165]
[1745593683212,29.63586761,154.5,154.48,32.20036165]
[1745593683507,29.63586761,154.5,154.49,32.20036165]
[1745593685119,28.93507499,154.5,154.49,32.20036165]
[1745593686192,0.063,154.51,154.49,38.21366165]
[1745593686517,0.063,154.51,154.5,32.20036165]
[1745593691631,0.063,154.51,154.49,32.0133]
[1745593691816,0.063,154.51,154.5,32.20036165]
[1745593695462,0.063,154.53,154.5,58.20036165]